fUST/lending_fUST_20240905
["ID","MTS","AMOUNT","RATE_DAILY","PERIOD"]
[337231610,1725516650767,-500.0,0.00022465,2]
[337231611,1725516650776,-977.98,0.00022465,2]
[337231612,1725516650785,-230.81738405,0.00022465,2]
[337231613,1725516650794,-500.0,0.00022465,2]
[337231614,1725516650803,-879.77,0.00022465,2]
[337231615,1725516650813,-500.0,0.00022465,2]
[337231616,1725516650823,-500.0,0.00022465,2]
[337231617,1725516650832,-500.0,0.00022465,2]
[337231618,1725516650841,-500.0,0.00022465,2]
[337231619,1725516650850,-693.4,0.00022465,2]
[337231620,1725516650860,-500.0,0.00022465,2]
[337231621,1725516650869,-500.0,0.00022465,2]
[337231622,1725516650879,-511.53712395,0.00022465,2]
[337231623,1725516650888,-500.0,0.00022465,2]
[337231624,1725516650898,-195.18155483,0.00022465,2]
[337231625,1725516650907,-500.0,0.00022465,2]
[337231626,1725516650916,-500.0,0.00022465,2]
[337231627,1725516650926,-500.0,0.00022465,2]
[337231628,1725516650936,-500.0,0.00022465,2]
[337231629,1725516650945,-500.0,0.00022465,2]
[337231630,1725516650955,-500.0,0.00022465,2]
[337231631,1725516650967,-500.0,0.00022465,2]
[337231632,1725516650976,-500.0,0.00022465,2]
[337231633,1725516650987,-500.0,0.00022465,2]
[337231634,1725516650998,-583.41,0.00022465,2]
[337231635,1725516651008,-272.8609272,0.00022465,2]
[337231636,1725516651018,-500.0,0.00022465,2]
[337231637,1725516651029,-675.41,0.00022465,2]
[337231638,1725516651039,-225.47122687,0.00022465,2]
[337231639,1725516651048,-500.0,0.00022465,2]
[337231640,1725516651060,-500.0,0.00022465,2]
[337231641,1725516651079,-500.0,0.00022465,2]
[337231642,1725516651089,-500.0,0.00022465,2]
[337231643,1725516651099,-500.0,0.00022465,2]
[337231644,1725516651110,-500.0,0.00022465,2]
[337231645,1725516651121,-500.0,0.00022465,2]
[337231646,1725516651130,-500.0,0.00022465,2]
[337231647,1725516651140,-500.0,0.00022465,2]
[337231648,1725516651150,-500.0,0.00022465,2]
[337231649,1725516651159,-500.0,0.00022465,2]
[337231650,1725516651168,-837.75,0.00022465,2]
[337231651,1725516651177,-500.0,0.00022465,2]
[337231652,1725516651187,-532.86,0.00022465,2]
[337231653,1725516651197,-500.0,0.00022465,2]
[337231654,1725516651208,-810.43,0.00022465,2]
[337231655,1725516651218,-212.75,0.00022465,7]
[337231656,1725516651231,-500.0,0.00022465,2]
[337231657,1725516651241,-212.75,0.00022465,7]
[337231658,1725516651251,-669.02,0.00022465,2]
[337231659,1725516651261,-500.0,0.00022465,2]
[337231660,1725516651270,-500.0,0.00022465,2]
[337231661,1725516651280,-500.0,0.00022465,2]
[337231662,1725516651289,-190.705165,0.00022465,7]
[337231663,1725516651298,-190.705165,0.00022465,7]
[337231664,1725516651312,-500.0,0.00022465,2]
[337231665,1725516651322,-311.709284,0.00022465,7]
[337231666,1725516651333,-1155.01,0.00022465,2]
[337231667,1725516651345,-721.13,0.00022465,2]
[337231668,1725516651357,-311.709284,0.00022465,7]
[337231669,1725516651367,-500.0,0.00022465,2]
[337231670,1725516651376,-500.0,0.00022465,2]
[337231671,1725516651386,-500.0,0.00022465,2]
[337231672,1725516651395,-513.05,0.00022465,2]
[337231673,1725516651405,-500.0,0.00022465,2]
[337231674,1725516651415,-683.83,0.00022465,2]
[337231675,1725516651427,-500.0,0.00022465,2]
[337231676,1725516651436,-500.0,0.00022465,2]
[337231677,1725516651445,-681.83,0.00022465,2]
[337231678,1725516651456,-500.0,0.00022465,2]
[337231679,1725516651466,-500.0,0.00022465,2]
[337231680,1725516651477,-500.0,0.00022465,2]
[337231681,1725516651487,-500.0,0.00022465,2]
[337231682,1725516651498,-500.0,0.00022465,2]
[337231683,1725516651508,-778.43,0.00022465,2]
[337231684,1725516651519,-500.0,0.00022465,2]
[337231685,1725516651529,-500.0,0.00022465,2]
[337231686,1725516651539,-729.43,0.00022465,2]
[337231687,1725516651549,-500.0,0.00022465,2]
[337231688,1725516651561,-500.0,0.00022465,2]
[337231689,1725516651571,-500.0,0.00022465,2]
[337231690,1725516651580,-500.0,0.00022465,2]
[337231691,1725516651589,-500.0,0.00022465,2]
[337231692,1725516651598,-644.35,0.00022465,2]
[337231693,1725516651608,-706.13,0.00022465,2]
[337231694,1725516651617,-503.07,0.00022465,2]
[337231695,1725516651627,-267.23454976,0.00022465,2]
[337231696,1725516651636,-500.0,0.00022465,2]
[337231697,1725516651645,-500.0,0.00022465,2]
[337231698,1725516651658,-500.0,0.00022465,2]
[337231699,1725516651667,-831.23,0.00022465,2]
[337231700,1725516651677,-927.27,0.00022465,2]
[337231701,1725516651686,-500.0,0.00022465,2]
[337231702,1725516651695,-500.0,0.00022465,2]
[337231703,1725516651705,-876.84,0.00022465,2]
[337231704,1725516651714,-500.0,0.00022465,2]
[337231705,1725516651723,-8247.45,0.00022465,2]
[337231706,1725516651732,-500.0,0.00022465,2]
[337231707,1725516651741,-500.0,0.00022465,2]
[337231708,1725516651751,-500.0,0.00022465,2]
[337231709,1725516651760,-500.0,0.00022465,2]
[337231710,1725516651769,-1771.81,0.00022465,2]
[337231711,1725516651778,-500.0,0.00022465,2]
[337231712,1725516651787,-500.0,0.00022465,2]
[337231713,1725516651796,-500.0,0.00022465,2]
[337231714,1725516651806,-500.0,0.00022465,2]
[337231715,1725516651815,-500.0,0.00022465,2]
[337231716,1725516651824,-500.0,0.00022465,2]
[337231717,1725516651834,-586.77,0.00022465,2]
[337231718,1725516651842,-1991.802263,0.00022465,7]
[337231719,1725516651851,-500.0,0.00022465,2]
[337231720,1725516651860,-1991.802263,0.00022465,7]
[337231721,1725516651869,-1991.802263,0.00022465,7]
[337231722,1725516651878,-1991.802263,0.00022465,7]
[337231723,1725516651887,-500.0,0.00022465,2]
[337231724,1725516651896,-500.0,0.00022465,2]
[337231725,1725516651905,-613.55,0.00022465,2]
[337231726,1725516651915,-500.0,0.00022465,2]
[337231727,1725516651925,-2206.74,0.00022465,2]
[337231728,1725516651936,-4382.44,0.00022465,2]
[337231729,1725516651947,-603.55,0.00022465,2]
[337231730,1725516651958,-2238.95,0.00022465,2]
[337231731,1725516651967,-500.0,0.00022465,2]
[337231732,1725516651976,-711.23,0.00022465,2]
[337231733,1725516651985,-500.0,0.00022465,2]
[337231734,1725516651995,-792.94,0.00022465,2]
[337231735,1725516652004,-394.17500981,0.00022465,2]
[337231736,1725516652013,-4212.36,0.00022465,2]
[337231737,1725516652022,-500.0,0.00022465,2]
[337231738,1725516652032,-3403.69,0.00022465,2]
[337231739,1725516652041,-609.75,0.00022465,2]
[337231740,1725516652050,-500.0,0.00022465,2]
[337231741,1725516652060,-500.0,0.00022465,2]
[337231742,1725516652070,-151.0,0.00022465,7]
[337231743,1725516652079,-151.0,0.00022465,7]
[337231744,1725516652089,-500.0,0.00022465,2]
[337231745,1725516652098,-944.5,0.00022465,2]
[337231746,1725516652107,-735.27,0.00022465,2]
[337231747,1725516652117,-263.23354121,0.00022465,2]
[337231748,1725516652126,-500.0,0.00022465,2]
[337231749,1725516652134,-500.0,0.00022465,2]
[337231750,1725516652144,-500.0,0.00022465,2]
[337231751,1725516652155,-500.0,0.00022465,2]
[337231752,1725516652165,-4045.01,0.00022465,2]
[337231753,1725516652175,-500.0,0.00022465,2]
[337231754,1725516652185,-614.45,0.00022465,2]
[337231755,1725516652195,-959.3,0.00022465,2]
[337231756,1725516652205,-500.0,0.00022465,2]
[337231757,1725516652215,-500.0,0.00022465,2]
[337231758,1725516652226,-632.51,0.00022465,2]
[337231759,1725516652237,-1587.68,0.00022465,2]
[337231760,1725516652247,-500.0,0.00022465,2]
[337231761,1725516652257,-520.8,0.00022465,2]
[337231762,1725516652266,-500.0,0.00022465,2]
[337231763,1725516652275,-516.46,0.00022465,2]
[337231764,1725516652285,-776.3,0.00022465,2]
[337231765,1725516652294,-500.0,0.00022465,2]
[337231766,1725516652304,-2774.701648,0.00022465,7]
[337231767,1725516652315,-2774.701648,0.00022465,7]
[337231768,1725516652325,-500.0,0.00022465,2]
[337231769,1725516652335,-829.6,0.00022465,2]
[337231770,1725516652345,-516.15,0.00022465,2]
[337231771,1725516652355,-2774.701648,0.00022465,7]
[337231772,1725516652364,-2774.701648,0.00022465,7]
[337231773,1725516652373,-1062.25,0.00022465,2]
[337231774,1725516652383,-500.0,0.00022465,2]
[337231775,1725516652392,-591.21,0.00022465,2]
[337231776,1725516652401,-500.0,0.00022465,2]
[337231777,1725516652410,-500.0,0.00022465,2]
[337231778,1725516652419,-500.0,0.00022465,2]
[337231779,1725516652428,-3048.32,0.00022465,2]
[337231780,1725516652438,-500.0,0.00022465,2]
[337231781,1725516652447,-515.83,0.00022465,2]
[337231782,1725516652456,-722.5,0.00022465,2]
[337231783,1725516652466,-500.0,0.00022465,2]
[337231784,1725516652475,-1669.59,0.00022465,2]
[337231785,1725516652484,-500.0,0.00022465,2]
[337231786,1725516652493,-710.43,0.00022465,2]
[337231787,1725516652503,-500.0,0.00022465,2]
[337231788,1725516652512,-500.0,0.00022465,2]
[337231789,1725516652521,-712.38,0.00022465,2]
[337231790,1725516652531,-500.0,0.00022465,2]
[337231791,1725516652541,-745.1,0.00022465,2]
[337231792,1725516652551,-589.85,0.00022465,2]
[337231793,1725516652560,-500.0,0.00022465,2]
[337231794,1725516652569,-500.0,0.00022465,2]
[337231795,1725516652578,-500.0,0.00022465,2]
[337231796,1725516652588,-8223.33,0.00022465,2]
[337231797,1725516652597,-500.0,0.00022465,2]
[337231798,1725516652606,-500.0,0.00022465,2]
[337231799,1725516652615,-524.64,0.00022465,2]
[337231800,1725516652624,-500.0,0.00022465,2]
[337231801,1725516652633,-500.0,0.00022465,2]
[337231802,1725516652644,-3734.73,0.00022465,2]
[337231803,1725516652656,-500.0,0.00022465,2]
[337231804,1725516652666,-500.0,0.00022465,2]
[337231805,1725516652675,-153.912629,0.00022465,7]
[337231806,1725516652684,-500.0,0.00022465,2]
[337231807,1725516652695,-153.912629,0.00022465,7]
[337231808,1725516652704,-500.0,0.00022465,2]
[337231809,1725516652714,-4594.61,0.00022465,2]
[337231810,1725516652725,-846.81,0.00022465,2]
[337231811,1725516652735,-500.0,0.00022465,2]
[337231812,1725516652744,-153.912629,0.00022465,7]
[337231813,1725516652753,-153.912629,0.00022465,7]
[337231814,1725516652763,-500.0,0.00022465,2]
[337231815,1725516652773,-500.0,0.00022465,2]
[337231816,1725516652782,-1331.31,0.00022465,2]
[337231817,1725516652792,-247.27253115,0.00022465,2]
[337231818,1725516652802,-2203.15,0.00022465,2]
[337231819,1725516652812,-500.0,0.00022465,2]
[337231820,1725516652821,-500.0,0.00022465,2]
[337231821,1725516652831,-500.0,0.00022465,2]
[337231822,1725516652840,-500.0,0.00022465,2]
[337231823,1725516652850,-500.0,0.00022465,2]
[337231824,1725516652859,-500.0,0.00022465,2]
[337231825,1725516652868,-774.33,0.00022465,2]
[337231826,1725516652877,-500.0,0.00022465,2]
[337231827,1725516652887,-500.0,0.00022465,2]
[337231828,1725516652896,-500.0,0.00022465,2]
[337231829,1725516652905,-1375.25,0.00022465,2]
[337231830,1725516652914,-500.0,0.00022465,2]
[337231831,1725516652923,-500.0,0.00022465,2]
[337231832,1725516652932,-500.0,0.00022465,2]
[337231833,1725516652941,-529.67,0.00022465,2]
[337231834,1725516652951,-6891.35,0.00022465,2]
[337231835,1725516652961,-500.0,0.00022465,2]
[337231836,1725516652970,-500.0,0.00022465,2]
[337231837,1725516652979,-3337.75,0.00022465,2]
[337231838,1725516652988,-511.68,0.00022465,2]
[337231839,1725516652998,-500.0,0.00022465,2]
[337231840,1725516653008,-500.0,0.00022465,2]
[337231841,1725516653017,-150.112233,0.000225,3]
[337231842,1725516653026,-150.112233,0.000225,4]
[337231843,1725516653035,-150.112233,0.000225,3]
[337231844,1725516653045,-150.112233,0.000226,3]
[337231845,1725516653054,-150.112233,0.000226,4]
[337231846,1725516653064,-150.112233,0.000227,4]
[337231847,1725516653073,-150.112233,0.000227,2]
[337231848,1725516653082,-150.0,0.000227,2]
[337231849,1725516653091,-1004.91906,0.000227,2]
[337231850,1725516653100,-151.0,0.00022729,7]
[337231851,1725516653109,-212.75,0.00022729,7]
[337231852,1725516653118,-212.75,0.00022729,7]
[337231853,1725516653127,-190.705165,0.00022729,7]
[337231854,1725516653137,-190.705165,0.00022729,7]
[337231855,1725516653146,-311.709284,0.00022729,7]
[337231856,1725516653155,-311.709284,0.00022729,7]
[337231857,1725516653164,-151.0,0.00022729,7]
[337231858,1725516653174,-151.0,0.00022729,7]
[337231859,1725516653183,-228.07090175,0.00022738,2]
[337231860,1725516653192,-5104.54857578,0.00022738,2]
[337231861,1725516653201,-500.0,0.00022739,2]
[337231862,1725516653210,-533.99,0.00022739,2]
[337231863,1725516653219,-500.0,0.00022739,2]
[337231864,1725516653228,-500.0,0.00022739,2]
[337231865,1725516653238,-500.0,0.00022739,2]
[337231866,1725516653247,-500.0,0.00022739,2]
[337231867,1725516653256,-500.0,0.00022739,2]
[337231868,1725516653265,-151.0,0.00022739,7]
[337231869,1725516653275,-500.0,0.00022739,2]
[337231870,1725516653284,-575.35187088,0.00022739,2]
[337231871,1725516653293,-500.0,0.00022739,2]
[337231872,1725516653302,-500.0,0.00022739,2]
[337231873,1725516653312,-500.0,0.00022739,2]
[337231874,1725516653322,-977.98,0.00022739,2]
[337231875,1725516653332,-500.0,0.00022739,2]
[337231876,1725516653341,-879.77,0.00022739,2]
[337231877,1725516653351,-500.0,0.00022739,2]
[337231878,1725516653360,-500.0,0.00022739,2]
[337231879,1725516653369,-469.95588242,0.00022739,2]
[337231880,1725516653378,-269.64112424,0.00022739,2]
[337231881,1725516653387,-693.4,0.00022739,2]
[337231882,1725516653397,-531.79495892,0.00022739,2]
[337231883,1725516653406,-500.0,0.00022739,2]
[337231884,1725516653415,-500.0,0.00022739,2]
[337231885,1725516653561,-500.0,0.00022739,2]
[337231886,1725516653571,-500.0,0.00022739,2]
[337231887,1725516653580,-500.0,0.00022739,2]
[337231888,1725516653590,-500.0,0.00022739,2]
[337231889,1725516653600,-500.0,0.00022739,2]
[337231890,1725516653609,-500.0,0.00022739,2]
[337231891,1725516653618,-500.0,0.00022739,2]
[337231892,1725516653628,-500.0,0.00022739,2]
[337231893,1725516653637,-500.0,0.00022739,2]
[337231894,1725516653646,-583.41,0.00022739,2]
[337231895,1725516653659,-500.0,0.00022739,2]
[337231896,1725516653668,-675.41,0.00022739,2]
[337231897,1725516653678,-500.0,0.00022739,2]
[337231898,1725516653688,-500.0,0.00022739,2]
[337231899,1725516653697,-500.0,0.00022739,2]
[337231900,1725516653707,-500.0,0.00022739,2]
[337231901,1725516653716,-500.0,0.00022739,2]
[337231902,1725516653727,-647.12749871,0.00022739,2]
[337231903,1725516653736,-500.0,0.00022739,2]
[337231904,1725516653745,-500.0,0.00022739,2]
[337231905,1725516653755,-500.0,0.00022739,2]
[337231906,1725516653764,-500.0,0.00022739,2]
[337231907,1725516653773,-500.0,0.00022739,2]
[337231908,1725516653783,-837.75,0.00022739,2]
[337231909,1725516653793,-500.0,0.00022739,2]
[337231910,1725516653802,-532.86,0.00022739,2]
[337231911,1725516653811,-500.0,0.00022739,2]
[337231912,1725516653821,-810.43,0.00022739,2]
[337231913,1725516653830,-212.75,0.00022739,7]
[337231914,1725516653840,-500.0,0.00022739,2]
[337231915,1725516653849,-212.75,0.00022739,7]
[337231916,1725516653858,-669.02,0.00022739,2]
[337231917,1725516653867,-500.0,0.00022739,2]
[337231918,1725516653877,-500.0,0.00022739,2]
[337231919,1725516653886,-500.0,0.00022739,2]
[337231920,1725516653895,-190.705165,0.00022739,7]
[337231921,1725516653904,-190.705165,0.00022739,7]
[337231922,1725516653914,-500.0,0.00022739,2]
[337231923,1725516653923,-1155.01,0.00022739,2]
[337231924,1725516653932,-311.709284,0.00022739,7]
[337231925,1725516653944,-721.13,0.00022739,2]
[337231926,1725516653957,-311.709284,0.00022739,7]
[337231927,1725516653967,-500.0,0.00022739,2]
[337231928,1725516653976,-500.0,0.00022739,2]
[337231929,1725516653986,-500.0,0.00022739,2]
[337231930,1725516653995,-513.05,0.00022739,2]
[337231931,1725516654004,-360.30558369,0.00022739,2]
[337231932,1725516654016,-683.83,0.00022739,2]
[337231933,1725516654027,-347.13408848,0.00022739,2]
[337231934,1725516654038,-500.0,0.00022739,2]
[337231935,1725516654047,-681.83,0.00022739,2]
[337231936,1725516654058,-500.0,0.00022739,2]
[337231937,1725516654068,-500.0,0.00022739,2]
[337231938,1725516654078,-500.0,0.00022739,2]
[337231939,1725516654087,-500.0,0.00022739,2]
[337231940,1725516654097,-500.0,0.00022739,2]
[337231941,1725516654107,-778.43,0.00022739,2]
[337231942,1725516654117,-500.0,0.00022739,2]
[337231943,1725516654127,-500.0,0.00022739,2]
[337231944,1725516654137,-729.43,0.00022739,2]
[337231945,1725516654147,-566.69792417,0.00022739,2]
[337231946,1725516654156,-500.0,0.00022739,2]
[337231947,1725516654166,-500.0,0.00022739,2]
[337231948,1725516654177,-500.0,0.00022739,2]
[337231949,1725516654188,-500.0,0.00022739,2]
[337231950,1725516654198,-644.35,0.00022739,2]
[337231951,1725516654209,-706.13,0.00022739,2]
[337231952,1725516654220,-503.07,0.00022739,2]
[337231953,1725516654231,-500.0,0.00022739,2]
[337231954,1725516654243,-500.0,0.00022739,2]
[337231955,1725516654254,-500.0,0.00022739,2]
[337231956,1725516654263,-831.23,0.00022739,2]
[337231957,1725516654272,-927.27,0.00022739,2]
[337231958,1725516654282,-500.0,0.00022739,2]
[337231959,1725516654291,-500.0,0.00022739,2]
[337231960,1725516654301,-876.84,0.00022739,2]
[337231961,1725516654319,-500.0,0.00022739,2]
[337231962,1725516654329,-8247.45,0.00022739,2]
[337231963,1725516654338,-500.0,0.00022739,2]
[337231964,1725516654348,-500.0,0.00022739,2]
[337231965,1725516654357,-500.0,0.00022739,2]
[337231966,1725516654366,-500.0,0.00022739,2]
[337231967,1725516654376,-1771.81,0.00022739,2]
[337231968,1725516654385,-500.0,0.00022739,2]
[337231969,1725516654394,-500.0,0.00022739,2]
[337231970,1725516654403,-500.0,0.00022739,2]
[337231971,1725516654414,-500.0,0.00022739,2]
[337231972,1725516654425,-500.0,0.00022739,2]
[337231973,1725516654437,-500.0,0.00022739,2]
[337231974,1725516654448,-586.77,0.00022739,2]
[337231975,1725516654457,-500.0,0.00022739,2]
[337231976,1725516654469,-1991.802263,0.00022739,7]
[337231977,1725516654480,-1991.802263,0.00022739,7]
[337231978,1725516654491,-1991.802263,0.00022739,7]
[337231979,1725516654500,-1991.802263,0.00022739,7]
[337231980,1725516654511,-353.70253461,0.00022739,2]
[337231981,1725516654520,-333.79682733,0.00022739,2]
[337231982,1725516654530,-613.55,0.00022739,2]
[337231983,1725516654539,-500.0,0.00022739,2]
[337231984,1725516654549,-2206.74,0.00022739,2]
[337231985,1725516654560,-4382.44,0.00022739,2]
[337231986,1725516654569,-603.55,0.00022739,2]
[337231987,1725516654579,-2238.95,0.00022739,2]
[337231988,1725516654589,-500.0,0.00022739,2]
[337231989,1725516654598,-711.23,0.00022739,2]
[337231990,1725516654607,-500.0,0.00022739,2]
[337231991,1725516654616,-792.94,0.00022739,2]
[337231992,1725516654626,-4212.36,0.00022739,2]
[337231993,1725516654636,-500.0,0.00022739,2]
[337231994,1725516654649,-3403.69,0.00022739,2]
[337231995,1725516654659,-609.75,0.00022739,2]
[337231996,1725516654669,-500.0,0.00022739,2]
[337231997,1725516654679,-500.0,0.00022739,2]
[337231998,1725516654690,-151.0,0.00022739,7]
[337231999,1725516654699,-265.103224,0.00022739,7]
[337232000,1725516654711,-500.0,0.00022739,2]
[337232001,1725516654722,-944.5,0.00022739,2]
[337232002,1725516654733,-735.27,0.00022739,2]
[337232003,1725516654743,-500.0,0.00022739,2]
[337232004,1725516654755,-500.0,0.00022739,2]
[337232005,1725516654765,-500.0,0.00022739,2]
[337232006,1725516654775,-500.0,0.00022739,2]
[337232007,1725516654786,-4045.01,0.00022739,2]
[337232008,1725516654795,-500.0,0.00022739,2]
[337232009,1725516654805,-614.45,0.00022739,2]
[337232010,1725516654816,-959.3,0.00022739,2]
[337232011,1725516654826,-500.0,0.00022739,2]
[337232012,1725516654837,-500.0,0.00022739,2]
[337232013,1725516654848,-632.51,0.00022739,2]
[337232014,1725516654857,-1587.68,0.00022739,2]
[337232015,1725516654867,-500.0,0.00022739,2]
[337232016,1725516654876,-520.8,0.00022739,2]
[337232017,1725516654885,-500.0,0.00022739,2]
[337232018,1725516654895,-516.46,0.00022739,2]
[337232019,1725516654904,-776.3,0.00022739,2]
[337232020,1725516654913,-500.0,0.00022739,2]
[337232021,1725516654922,-500.0,0.00022739,2]
[337232022,1725516654932,-2774.701648,0.00022739,7]
[337232023,1725516654942,-829.6,0.00022739,2]
[337232024,1725516654952,-2774.701648,0.00022739,7]
[337232025,1725516654961,-516.15,0.00022739,2]
[337232026,1725516654971,-2774.701648,0.00022739,7]
[337232027,1725516654980,-2774.701648,0.00022739,7]
[337232028,1725516654990,-1062.25,0.00022739,2]
[337232029,1725516654999,-500.0,0.00022739,2]
[337232030,1725516655009,-591.21,0.00022739,2]
[337232031,1725516655022,-500.0,0.00022739,2]
[337232032,1725516655034,-525.86457224,0.00022739,2]
[337232033,1725516655044,-500.0,0.00022739,2]
[337232034,1725516655053,-3048.32,0.00022739,2]
[337232035,1725516655064,-500.0,0.00022739,2]
[337232036,1725516655074,-515.83,0.00022739,2]
[337232037,1725516655084,-722.5,0.00022739,2]
[337232038,1725516655094,-371.97796,0.00022739,2]
[337232039,1725516655103,-1669.59,0.00022739,2]
[337232040,1725516655112,-500.0,0.00022739,2]
[337232041,1725516655122,-710.43,0.00022739,2]
[337232042,1725516655130,-500.0,0.00022739,2]
[337232043,1725516655140,-500.0,0.00022739,2]
[337232044,1725516655149,-712.38,0.00022739,2]
[337232045,1725516655160,-500.0,0.00022739,2]
[337232046,1725516655170,-745.1,0.00022739,2]
[337232047,1725516655179,-589.85,0.00022739,2]
[337232048,1725516655189,-500.0,0.00022739,2]
[337232049,1725516655199,-500.0,0.00022739,2]
[337232050,1725516655208,-541.80104553,0.00022739,2]
[337232051,1725516655218,-8223.33,0.00022739,2]
[337232052,1725516655227,-500.0,0.00022739,2]
[337232053,1725516655237,-500.0,0.00022739,2]
[337232054,1725516655246,-524.64,0.00022739,2]
[337232055,1725516655256,-242.12847529,0.00022739,2]
[337232056,1725516655265,-500.0,0.00022739,2]
[337232057,1725516655275,-3734.73,0.00022739,2]
[337232058,1725516655285,-500.0,0.00022739,2]
[337232059,1725516655295,-500.0,0.00022739,2]
[337232060,1725516655304,-500.0,0.00022739,2]
[337232061,1725516655315,-153.912629,0.00022739,7]
[337232062,1725516655324,-500.0,0.00022739,2]
[337232063,1725516655333,-153.912629,0.00022739,7]
[337232064,1725516655342,-4594.61,0.00022739,2]
[337232065,1725516655351,-846.81,0.00022739,2]
[337232066,1725516655360,-500.0,0.00022739,2]
[337232067,1725516655369,-153.912629,0.00022739,7]
[337232068,1725516655379,-153.912629,0.00022739,7]
[337232069,1725516655388,-500.0,0.00022739,2]
[337232070,1725516655397,-500.0,0.00022739,2]
[337232071,1725516655406,-1331.31,0.00022739,2]
[337232072,1725516655415,-2203.15,0.00022739,2]
[337232073,1725516655425,-500.0,0.00022739,2]
[337232074,1725516655434,-500.0,0.00022739,2]
[337232075,1725516655443,-500.0,0.00022739,2]
[337232076,1725516655452,-500.0,0.00022739,2]
[337232077,1725516655462,-500.0,0.00022739,2]
[337232078,1725516655471,-500.0,0.00022739,2]
[337232079,1725516655480,-774.33,0.00022739,2]
[337232080,1725516655489,-500.0,0.00022739,2]
[337232081,1725516655499,-500.0,0.00022739,2]
[337232082,1725516655509,-500.0,0.00022739,2]
[337232083,1725516655518,-1375.25,0.00022739,2]
[337232084,1725516655528,-500.0,0.00022739,2]
[337232085,1725516655537,-500.0,0.00022739,2]
[337232086,1725516655546,-500.0,0.00022739,2]
[337232087,1725516655555,-529.67,0.00022739,2]
[337232088,1725516655567,-6891.35,0.00022739,2]
[337232089,1725516655576,-500.0,0.00022739,2]
[337232090,1725516655586,-500.0,0.00022739,2]
[337232091,1725516655597,-3337.75,0.00022739,2]
[337232092,1725516655606,-511.68,0.00022739,2]
[337232093,1725516655616,-500.0,0.00022739,2]
[337232094,1725516655626,-500.0,0.00022739,2]
[337232095,1725516655636,-477.0,0.00023,2]
[337232096,1725516655646,-151.0,0.00023012,7]
[337232097,1725516655659,-212.75,0.00023012,7]
[337232098,1725516655669,-212.75,0.00023012,7]
[337232099,1725516655678,-190.705165,0.00023012,7]
[337232100,1725516655688,-190.705165,0.00023012,7]
[337232101,1725516655697,-311.709284,0.00023012,7]
[337232102,1725516655707,-311.709284,0.00023012,7]
[337232103,1725516655716,-151.0,0.00023012,7]
[337232104,1725516655726,-500.0,0.00023013,2]
[337232105,1725516655737,-533.99,0.00023013,2]
[337232106,1725516655746,-500.0,0.00023013,2]
[337232107,1725516655757,-452.17488893,0.00023013,2]
[337232108,1725516655767,-500.0,0.00023013,2]
[337232109,1725516655779,-500.0,0.00023013,2]